fUST/lending_fUST_20250408
["ID","MTS","AMOUNT","RATE_DAILY","PERIOD"]
[357464473,1744075849875,-500.0,0.00023013,2]
[357464474,1744075849886,-640.16255801,0.00023013,2]
[357464475,1744075849897,-1205.86,0.00023013,2]
[357464476,1744075849907,-650.7,0.00023013,2]
[357464477,1744075849917,-500.0,0.00023013,2]
[357464478,1744075849927,-500.0,0.00023013,2]
[357464479,1744075849937,-718.92,0.00023013,2]
[357464480,1744075849948,-906.03,0.00023013,2]
[357464481,1744075849958,-657.7,0.00023013,2]
[357464482,1744075849969,-500.0,0.00023013,2]
[357464483,1744075849979,-500.0,0.00023013,2]
[357464484,1744075849988,-1058.79,0.00023013,2]
[357464485,1744075849998,-500.0,0.00023013,2]
[357464486,1744075850009,-1529.51,0.00023013,2]
[357464487,1744075850019,-500.0,0.00023013,2]
[357464488,1744075850028,-500.0,0.00023013,2]
[357464489,1744075850039,-923.55,0.00023013,2]
[357464490,1744075850048,-605.62,0.00023013,2]
[357464491,1744075850058,-1846.61,0.00023013,2]
[357464492,1744075850068,-5648.19505438,0.00023054,2]
[357464493,1744075850078,-169.00517036,0.00023054,2]
[357464494,1744075850087,-4539.74368747,0.000232,4]
[357464495,1744075850097,-500.0,0.00023287,2]
[357464496,1744075850107,-332.24900248,0.00023287,2]
[357464497,1744075850117,-500.0,0.00023287,2]
[357464498,1744075850126,-500.0,0.00023287,2]
[357464499,1744075850137,-500.0,0.00023287,2]
[357464500,1744075850147,-684.93,0.00023287,2]
[357464501,1744075850157,-463.59832632,0.00023287,2]
[357464502,1744075850167,-500.0,0.00023287,2]
[357464503,1744075850176,-500.0,0.00023287,2]
[357464504,1744075850186,-627.85,0.00023287,2]
[357464505,1744075850196,-500.0,0.00023287,2]
[357464506,1744075850206,-536.57,0.00023287,2]
[357464507,1744075850216,-539.51,0.00023287,2]
[357464508,1744075850225,-500.0,0.00023287,2]
[357464509,1744075850235,-500.0,0.00023287,2]
[357464510,1744075850245,-500.0,0.00023287,2]
[357464511,1744075850255,-500.0,0.00023287,2]
[357464512,1744075850265,-500.0,0.00023287,2]
[357464513,1744075850275,-656.43,0.00023287,2]
[357464514,1744075850285,-500.0,0.00023287,2]
[357464515,1744075850294,-562.19,0.00023287,2]
[357464516,1744075850304,-833.59,0.00023287,2]
[357464517,1744075850314,-500.0,0.00023287,2]
[357464518,1744075850324,-500.0,0.00023287,2]
[357464519,1744075850334,-500.0,0.00023287,2]
[357464520,1744075850344,-500.0,0.00023287,2]
[357464521,1744075850354,-511.39,0.00023287,2]
[357464522,1744075850364,-500.0,0.00023287,2]
[357464523,1744075850374,-500.0,0.00023287,2]
[357464524,1744075850384,-500.0,0.00023287,2]
[357464525,1744075850394,-500.0,0.00023287,2]
[357464526,1744075850404,-998.79,0.00023287,2]
[357464527,1744075850415,-500.0,0.00023287,2]
[357464528,1744075850424,-500.0,0.00023287,2]
[357464529,1744075850435,-500.0,0.00023287,2]
[357464530,1744075850444,-500.0,0.00023287,2]
[357464531,1744075850454,-706.46,0.00023287,2]
[357464532,1744075850465,-500.0,0.00023287,2]
[357464533,1744075850476,-500.0,0.00023287,2]
[357464534,1744075850486,-500.0,0.00023287,2]
[357464535,1744075850496,-747.15,0.00023287,2]
[357464536,1744075850506,-500.0,0.00023287,2]
[357464537,1744075850516,-152.17777469,0.00023287,2]
[357464538,1744075850526,-613.65,0.00023287,2]
[357464539,1744075850536,-500.0,0.00023287,2]
[357464540,1744075850547,-500.0,0.00023287,2]
[357464541,1744075850557,-500.0,0.00023287,2]
[357464542,1744075850567,-1243.28,0.00023287,2]
[357464543,1744075850576,-571.29,0.00023287,2]
[357464544,1744075850587,-1564.56,0.00023287,2]
[357464545,1744075850602,-806.0,0.00023287,2]
[357464546,1744075850612,-500.0,0.00023287,2]
[357464547,1744075850622,-2890.56,0.00023287,2]
[357464548,1744075850633,-645.6,0.00023287,2]
[357464549,1744075850643,-500.0,0.00023287,2]
[357464550,1744075850653,-560.24,0.00023287,2]
[357464551,1744075850663,-500.0,0.00023287,2]
[357464552,1744075850676,-500.0,0.00023287,2]
[357464553,1744075850686,-500.0,0.00023287,2]
[357464554,1744075850696,-500.0,0.00023287,2]
[357464555,1744075850706,-500.0,0.00023287,2]
[357464556,1744075850718,-500.0,0.00023287,2]
[357464557,1744075850728,-500.0,0.00023287,2]
[357464558,1744075850739,-686.29,0.00023287,2]
[357464559,1744075850749,-644.83,0.00023287,2]
[357464560,1744075850759,-683.69,0.00023287,2]
[357464561,1744075850770,-963.6,0.00023287,2]
[357464562,1744075850780,-745.08,0.00023287,2]
[357464563,1744075850790,-500.0,0.00023287,2]
[357464564,1744075850800,-500.0,0.00023287,2]
[357464565,1744075850809,-500.0,0.00023287,2]
[357464566,1744075850819,-500.0,0.00023287,2]
[357464567,1744075850830,-5061.69,0.00023287,2]
[357464568,1744075850839,-500.0,0.00023287,2]
[357464569,1744075850850,-1159.91,0.00023287,2]
[357464570,1744075850860,-500.0,0.00023287,2]
[357464571,1744075850870,-1279.45,0.00023287,2]
[357464572,1744075850880,-643.68,0.00023287,2]
[357464573,1744075850890,-996.41,0.00023287,2]
[357464574,1744075850900,-645.19,0.00023287,2]
[357464575,1744075850910,-500.0,0.00023287,2]
[357464576,1744075850920,-690.67,0.00023287,2]
[357464577,1744075850930,-500.0,0.00023287,2]
[357464578,1744075850941,-500.0,0.00023287,2]
[357464579,1744075850951,-500.0,0.00023287,2]
[357464580,1744075850961,-886.21,0.00023287,2]
[357464581,1744075850972,-917.76,0.00023287,2]
[357464582,1744075850983,-500.0,0.00023287,2]
[357464583,1744075850993,-500.0,0.00023287,2]
[357464584,1744075851003,-1205.86,0.00023287,2]
[357464585,1744075851014,-650.7,0.00023287,2]
[357464586,1744075851024,-500.0,0.00023287,2]
[357464587,1744075851035,-500.0,0.00023287,2]
[357464588,1744075851045,-718.92,0.00023287,2]
[357464589,1744075851055,-906.03,0.00023287,2]
[357464590,1744075851066,-657.7,0.00023287,2]
[357464591,1744075851076,-232.67999353,0.00023287,2]
[357464592,1744075851087,-500.0,0.00023287,2]
[357464593,1744075851097,-1058.79,0.00023287,2]
[357464594,1744075851107,-500.0,0.00023287,2]
[357464595,1744075851117,-1529.51,0.00023287,2]
[357464596,1744075851128,-500.0,0.00023287,2]
[357464597,1744075851138,-500.0,0.00023287,2]
[357464598,1744075851148,-923.55,0.00023287,2]
[357464599,1744075851158,-605.62,0.00023287,2]
[357464600,1744075851168,-1846.61,0.00023287,2]
[357464601,1744075851179,-200.0,0.0002356,2]
[357464602,1744075851188,-603.06,0.00023561,2]
[357464603,1744075851198,-500.0,0.00023561,2]
[357464604,1744075851208,-500.0,0.00023561,2]
[357464605,1744075851219,-500.0,0.00023561,2]
[357464606,1744075851229,-684.93,0.00023561,2]
[357464607,1744075851238,-500.0,0.00023561,2]
[357464608,1744075851248,-500.0,0.00023561,2]
[357464609,1744075851258,-627.85,0.00023561,2]
[357464610,1744075851268,-500.0,0.00023561,2]
[357464611,1744075851277,-536.57,0.00023561,2]
[357464612,1744075851287,-539.51,0.00023561,2]
[357464613,1744075851297,-500.0,0.00023561,2]
[357464614,1744075851307,-500.0,0.00023561,2]
[357464615,1744075851316,-326.44070026,0.00023561,2]
[357464616,1744075851326,-500.0,0.00023561,2]
[357464617,1744075851335,-500.0,0.00023561,2]
[357464618,1744075851345,-656.43,0.00023561,2]
[357464619,1744075851354,-500.0,0.00023561,2]
[357464620,1744075851364,-562.19,0.00023561,2]
[357464621,1744075851374,-833.59,0.00023561,2]
[357464622,1744075851383,-500.0,0.00023561,2]
[357464623,1744075851393,-500.0,0.00023561,2]
[357464624,1744075851403,-500.0,0.00023561,2]
[357464625,1744075851413,-500.0,0.00023561,2]
[357464626,1744075851423,-511.39,0.00023561,2]
[357464627,1744075851433,-565.11,0.00023561,2]
[357464628,1744075851442,-500.0,0.00023561,2]
[357464629,1744075851452,-500.0,0.00023561,2]
[357464630,1744075851462,-998.79,0.00023561,2]
[357464631,1744075851472,-500.0,0.00023561,2]
[357464632,1744075851482,-381.26,0.00023561,2]
[357464633,1744075851492,-706.46,0.00023561,2]
[357464634,1744075851502,-500.0,0.00023561,2]
[357464635,1744075851512,-500.0,0.00023561,2]
[357464636,1744075851522,-747.15,0.00023561,2]
[357464637,1744075851532,-500.0,0.00023561,2]
[357464638,1744075851542,-613.65,0.00023561,2]
[357464639,1744075851552,-500.0,0.00023561,2]
[357464640,1744075851563,-500.0,0.00023561,2]
[357464641,1744075851573,-500.0,0.00023561,2]
[357464642,1744075851583,-1243.28,0.00023561,2]
[357464643,1744075851593,-571.29,0.00023561,2]
[357464644,1744075851606,-1564.56,0.00023561,2]
[357464645,1744075851615,-806.0,0.00023561,2]
[357464646,1744075851625,-500.0,0.00023561,2]
[357464647,1744075851635,-2890.56,0.00023561,2]
[357464648,1744075851645,-645.6,0.00023561,2]
[357464649,1744075851656,-534.54,0.00023561,2]
[357464650,1744075851666,-560.24,0.00023561,2]
[357464651,1744075851677,-500.0,0.00023561,2]
[357464652,1744075851688,-185.64,0.00023561,2]
[357464653,1744075851698,-500.0,0.00023561,2]
[357464654,1744075851708,-500.0,0.00023561,2]
[357464655,1744075851718,-320.1,0.00023561,2]
[357464656,1744075851727,-500.0,0.00023561,2]
[357464657,1744075851737,-500.0,0.00023561,2]
[357464658,1744075851747,-686.29,0.00023561,2]
[357464659,1744075851757,-644.83,0.00023561,2]
[357464660,1744075851768,-683.69,0.00023561,2]
[357464661,1744075851778,-963.6,0.00023561,2]
[357464662,1744075851788,-745.08,0.00023561,2]
[357464663,1744075851799,-500.0,0.00023561,2]
[357464664,1744075851812,-500.0,0.00023561,2]
[357464665,1744075851823,-500.0,0.00023561,2]
[357464666,1744075851834,-500.0,0.00023561,2]
[357464667,1744075851846,-5061.69,0.00023561,2]
[357464668,1744075851857,-500.0,0.00023561,2]
[357464669,1744075851870,-1159.91,0.00023561,2]
[357464670,1744075851882,-500.0,0.00023561,2]
[357464671,1744075851893,-1279.45,0.00023561,2]
[357464672,1744075851905,-643.68,0.00023561,2]
[357464673,1744075851916,-996.41,0.00023561,2]
[357464674,1744075851927,-645.19,0.00023561,2]
[357464675,1744075851938,-500.0,0.00023561,2]
[357464676,1744075851949,-690.67,0.00023561,2]
[357464677,1744075851961,-500.0,0.00023561,2]
[357464678,1744075852161,-640.7298913,0.00023561,2]
[357464679,1744075852173,-500.0,0.00023561,2]
[357464680,1744075852183,-886.21,0.00023561,2]
[357464681,1744075852193,-917.76,0.00023561,2]
[357464682,1744075852203,-500.0,0.00023561,2]
[357464683,1744075852218,-500.0,0.00023561,2]
[357464684,1744075852228,-1205.86,0.00023561,2]
[357464685,1744075852238,-650.7,0.00023561,2]
[357464686,1744075852248,-488.82,0.00023561,2]
[357464687,1744075852258,-500.0,0.00023561,2]
[357464688,1744075852268,-718.92,0.00023561,2]
[357464689,1744075852277,-906.03,0.00023561,2]
[357464690,1744075852286,-657.7,0.00023561,2]
[357464691,1744075852296,-500.0,0.00023561,2]
[357464692,1744075852306,-1058.79,0.00023561,2]
[357464693,1744075852316,-500.0,0.00023561,2]
[357464694,1744075852327,-1529.51,0.00023561,2]
[357464695,1744075852336,-500.0,0.00023561,2]
[357464696,1744075852346,-500.0,0.00023561,2]
[357464697,1744075852356,-923.55,0.00023561,2]
[357464698,1744075852366,-605.62,0.00023561,2]
[357464699,1744075852376,-1846.61,0.00023561,2]
[357464700,1744075852386,-306.00000041,0.00023834,2]
[357464701,1744075852395,-159.53760105,0.00023835,2]
[357464702,1744075852405,-500.0,0.00023835,2]
[357464703,1744075852415,-500.0,0.00023835,2]
[357464704,1744075852424,-684.93,0.00023835,2]
[357464705,1744075852434,-500.0,0.00023835,2]
[357464706,1744075852444,-500.0,0.00023835,2]
[357464707,1744075852453,-627.85,0.00023835,2]
[357464708,1744075852467,-500.0,0.00023835,2]
[357464709,1744075852476,-536.57,0.00023835,2]
[357464710,1744075852486,-539.51,0.00023835,2]
[357464711,1744075852496,-424.62711712,0.00023835,2]
[357464712,1744075852506,-500.0,0.00023835,2]
[357464713,1744075852516,-500.0,0.00023835,2]
[357464714,1744075852525,-500.0,0.00023835,2]
[357464715,1744075852536,-656.43,0.00023835,2]
[357464716,1744075852546,-500.0,0.00023835,2]
[357464717,1744075852556,-562.19,0.00023835,2]
[357464718,1744075852566,-833.59,0.00023835,2]
[357464719,1744075852576,-500.0,0.00023835,2]
[357464720,1744075852587,-500.0,0.00023835,2]
[357464721,1744075852600,-500.0,0.00023835,2]
[357464722,1744075852610,-500.0,0.00023835,2]
[357464723,1744075852620,-511.39,0.00023835,2]
[357464724,1744075852631,-500.0,0.00023835,2]
[357464725,1744075852640,-500.0,0.00023835,2]
[357464726,1744075852649,-998.79,0.00023835,2]
[357464727,1744075852659,-500.0,0.00023835,2]
[357464728,1744075852669,-706.46,0.00023835,2]
[357464729,1744075852681,-500.0,0.00023835,2]
[357464730,1744075852691,-500.0,0.00023835,2]
[357464731,1744075852702,-747.15,0.00023835,2]
[357464732,1744075852714,-500.0,0.00023835,2]
[357464733,1744075852725,-613.65,0.00023835,2]
[357464734,1744075852735,-500.0,0.00023835,2]
[357464735,1744075852745,-500.0,0.00023835,2]
[357464736,1744075852755,-500.0,0.00023835,2]
[357464737,1744075852766,-1243.28,0.00023835,2]
[357464738,1744075852776,-571.29,0.00023835,2]
[357464739,1744075852786,-1564.56,0.00023835,2]
[357464740,1744075852796,-806.0,0.00023835,2]
[357464741,1744075852806,-500.0,0.00023835,2]
[357464742,1744075852816,-2890.56,0.00023835,2]
[357464743,1744075852826,-645.6,0.00023835,2]
[357464744,1744075852836,-560.24,0.00023835,2]
[357464745,1744075852846,-500.0,0.00023835,2]
[357464746,1744075852857,-500.0,0.00023835,2]
[357464747,1744075852867,-500.0,0.00023835,2]
[357464748,1744075852877,-264.06,0.00023835,2]
[357464749,1744075852887,-500.0,0.00023835,2]
[357464750,1744075852897,-686.29,0.00023835,2]
[357464751,1744075852907,-644.83,0.00023835,2]
[357464752,1744075852917,-683.69,0.00023835,2]
[357464753,1744075852927,-963.6,0.00023835,2]
[357464754,1744075852937,-745.08,0.00023835,2]
[357464755,1744075852948,-159.53,0.00023835,2]
[357464756,1744075852958,-500.0,0.00023835,2]
[357464757,1744075852971,-626.78,0.00023835,2]
[357464758,1744075852981,-500.0,0.00023835,2]
[357464759,1744075852990,-5061.69,0.00023835,2]
[357464760,1744075853000,-500.0,0.00023835,2]
[357464761,1744075853010,-1159.91,0.00023835,2]
[357464762,1744075853020,-394.68904448,0.00023835,2]
[357464763,1744075853030,-1279.45,0.00023835,2]
[357464764,1744075853040,-643.68,0.00023835,2]
[357464765,1744075853050,-996.41,0.00023835,2]
[357464766,1744075853060,-645.19,0.00023835,2]
[357464767,1744075853070,-500.0,0.00023835,2]
[357464768,1744075853079,-690.67,0.00023835,2]
[357464769,1744075853088,-500.0,0.00023835,2]
[357464770,1744075853098,-372.27274341,0.00023835,2]
[357464771,1744075853107,-886.21,0.00023835,2]
[357464772,1744075853116,-917.76,0.00023835,2]
[357464773,1744075853127,-500.0,0.00023835,2]
[357464774,1744075853137,-500.0,0.00023835,2]
[357464775,1744075853147,-1205.86,0.00023835,2]
[357464776,1744075853156,-650.7,0.00023835,2]
[357464777,1744075853166,-500.0,0.00023835,2]
[357464778,1744075853178,-718.92,0.00023835,2]
[357464779,1744075853188,-906.03,0.00023835,2]
[357464780,1744075853198,-657.7,0.00023835,2]
[357464781,1744075853208,-500.0,0.00023835,2]
[357464782,1744075853219,-1058.79,0.00023835,2]
[357464783,1744075853229,-500.0,0.00023835,2]
[357464784,1744075853239,-1529.51,0.00023835,2]
[357464785,1744075853249,-500.0,0.00023835,2]
[357464786,1744075853258,-500.0,0.00023835,2]
[357464787,1744075853268,-923.55,0.00023835,2]
[357464788,1744075853278,-605.62,0.00023835,2]
[357464789,1744075853287,-1846.61,0.00023835,2]
[357464790,1744075853297,-207.4,0.00023994,2]
[357464791,1744075853307,-500.0,0.00024109,2]
[357464792,1744075853317,-505.27449259,0.00024109,2]
[357464793,1744075853326,-684.93,0.00024109,2]
[357464794,1744075853336,-500.0,0.00024109,2]
[357464795,1744075853346,-500.0,0.00024109,2]
[357464796,1744075853356,-627.85,0.00024109,2]
[357464797,1744075853366,-500.0,0.00024109,2]
[357464798,1744075853376,-536.57,0.00024109,2]
[357464799,1744075853386,-539.51,0.00024109,2]
[357464800,1744075853396,-500.0,0.00024109,2]
[357464801,1744075853406,-500.0,0.00024109,2]
[357464802,1744075853416,-500.0,0.00024109,2]
[357464803,1744075853426,-656.43,0.00024109,2]
[357464804,1744075853436,-500.0,0.00024109,2]
[357464805,1744075853446,-562.19,0.00024109,2]
[357464806,1744075853456,-833.59,0.00024109,2]
[357464807,1744075853468,-500.0,0.00024109,2]
[357464808,1744075853478,-500.0,0.00024109,2]
[357464809,1744075853487,-500.0,0.00024109,2]
[357464810,1744075853497,-500.0,0.00024109,2]
[357464811,1744075853507,-511.39,0.00024109,2]
[357464812,1744075853516,-500.0,0.00024109,2]
[357464813,1744075853526,-998.79,0.00024109,2]
[357464814,1744075853536,-500.0,0.00024109,2]
[357464815,1744075853546,-706.46,0.00024109,2]
[357464816,1744075853556,-609.28,0.00024109,2]
[357464817,1744075853565,-500.0,0.00024109,2]
[357464818,1744075853575,-747.15,0.00024109,2]
[357464819,1744075853586,-500.0,0.00024109,2]
[357464820,1744075853599,-613.65,0.00024109,2]
[357464821,1744075853609,-500.0,0.00024109,2]
[357464822,1744075853618,-500.0,0.00024109,2]
[357464823,1744075853628,-500.0,0.00024109,2]
[357464824,1744075853637,-1243.28,0.00024109,2]
[357464825,1744075853647,-571.29,0.00024109,2]
[357464826,1744075853657,-1564.56,0.00024109,2]
[357464827,1744075853666,-806.0,0.00024109,2]
[357464828,1744075853677,-500.0,0.00024109,2]
[357464829,1744075853687,-2890.56,0.00024109,2]
[357464830,1744075853696,-645.6,0.00024109,2]
[357464831,1744075853706,-560.24,0.00024109,2]
[357464832,1744075853717,-500.0,0.00024109,2]
[357464833,1744075853727,-500.0,0.00024109,2]
[357464834,1744075853737,-500.0,0.00024109,2]
[357464835,1744075853747,-500.0,0.00024109,2]
[357464836,1744075853757,-686.29,0.00024109,2]
[357464837,1744075853767,-644.83,0.00024109,2]
[357464838,1744075853778,-683.69,0.00024109,2]
[357464839,1744075853788,-963.6,0.00024109,2]
[357464840,1744075853798,-745.08,0.00024109,2]
[357464841,1744075853808,-500.0,0.00024109,2]
[357464842,1744075853818,-5061.69,0.00024109,2]
[357464843,1744075853828,-405.02,0.00024109,2]
[357464844,1744075853839,-1159.91,0.00024109,2]
[357464845,1744075853849,-1279.45,0.00024109,2]
[357464846,1744075853859,-643.68,0.00024109,2]
[357464847,1744075853868,-996.41,0.00024109,2]
[357464848,1744075853878,-645.19,0.00024109,2]
[357464849,1744075853889,-500.0,0.00024109,2]
[357464850,1744075853899,-690.67,0.00024109,2]
[357464851,1744075853910,-500.0,0.00024109,2]
[357464852,1744075853919,-886.21,0.00024109,2]
[357464853,1744075853930,-917.76,0.00024109,2]
[357464854,1744075853939,-500.0,0.00024109,2]
[357464855,1744075853950,-500.0,0.00024109,2]
[357464856,1744075853960,-1205.86,0.00024109,2]
[357464857,1744075853973,-650.7,0.00024109,2]
[357464858,1744075853983,-500.0,0.00024109,2]
[357464859,1744075853993,-718.92,0.00024109,2]
[357464860,1744075854003,-906.03,0.00024109,2]
[357464861,1744075854013,-657.7,0.00024109,2]
[357464862,1744075854024,-500.0,0.00024109,2]
[357464863,1744075854034,-1058.79,0.00024109,2]
[357464864,1744075854045,-500.0,0.00024109,2]
[357464865,1744075854055,-1529.51,0.00024109,2]
[357464866,1744075854065,-500.0,0.00024109,2]
[357464867,1744075854075,-500.0,0.00024109,2]
[357464868,1744075854086,-923.55,0.00024109,2]
[357464869,1744075854097,-605.62,0.00024109,2]
[357464870,1744075854106,-1846.61,0.00024109,2]
[357464871,1744075854116,-500.0,0.00024383,2]
[357464872,1744075854126,-684.93,0.00024383,2]
[357464873,1744075854136,-500.0,0.00024383,2]
[357464874,1744075854146,-500.0,0.00024383,2]
[357464875,1744075854156,-627.85,0.00024383,2]
[357464876,1744075854166,-500.0,0.00024383,2]
[357464877,1744075854176,-536.57,0.00024383,2]
[357464878,1744075854186,-539.51,0.00024383,2]
[357464879,1744075854196,-500.0,0.00024383,2]
[357464880,1744075854205,-500.0,0.00024383,2]
[357464881,1744075854218,-500.0,0.00024383,2]
[357464882,1744075854227,-656.43,0.00024383,2]
[357464883,1744075854237,-501.83,0.00024383,2]
[357464884,1744075854247,-562.19,0.00024383,2]
[357464885,1744075854257,-833.59,0.00024383,2]
[357464886,1744075854267,-500.0,0.00024383,2]
[357464887,1744075854281,-500.0,0.00024383,2]
[357464888,1744075854291,-500.0,0.00024383,2]
[357464889,1744075854301,-500.0,0.00024383,2]
[357464890,1744075854311,-511.39,0.00024383,2]
[357464891,1744075854323,-507.72447422,0.00024383,2]
[357464892,1744075854333,-998.79,0.00024383,2]
[357464893,1744075854343,-500.0,0.00024383,2]
[357464894,1744075854354,-706.46,0.00024383,2]
[357464895,1744075854364,-500.0,0.00024383,2]
[357464896,1744075854373,-747.15,0.00024383,2]
[357464897,1744075854384,-500.0,0.00024383,2]
[357464898,1744075854393,-613.65,0.00024383,2]
[357464899,1744075854404,-500.0,0.00024383,2]
[357464900,1744075854414,-500.0,0.00024383,2]
[357464901,1744075854424,-500.0,0.00024383,2]
[357464902,1744075854434,-1243.28,0.00024383,2]
[357464903,1744075854444,-571.29,0.00024383,2]
[357464904,1744075854454,-1564.56,0.00024383,2]
[357464905,1744075854463,-806.0,0.00024383,2]
[357464906,1744075854474,-500.0,0.00024383,2]
[357464907,1744075854484,-2890.56,0.00024383,2]
[357464908,1744075854494,-645.6,0.00024383,2]
[357464909,1744075854503,-560.24,0.00024383,2]
[357464910,1744075854514,-500.0,0.00024383,2]
[357464911,1744075854523,-500.0,0.00024383,2]
[357464912,1744075854533,-500.0,0.00024383,2]
[357464913,1744075854543,-262.84,0.00024383,2]
[357464914,1744075854553,-686.29,0.00024383,2]
[357464915,1744075854612,-644.83,0.00024383,2]
[357464916,1744075854622,-683.69,0.00024383,2]
[357464917,1744075854632,-963.6,0.00024383,2]
[357464918,1744075854643,-745.08,0.00024383,2]
[357464919,1744075854652,-500.0,0.00024383,2]
[357464920,1744075854662,-5061.69,0.00024383,2]
[357464921,1744075854672,-1159.91,0.00024383,2]
[357464922,1744075854685,-1279.45,0.00024383,2]
[357464923,1744075854694,-643.68,0.00024383,2]
[357464924,1744075854704,-996.41,0.00024383,2]
[357464925,1744075854713,-645.19,0.00024383,2]
[357464926,1744075854723,-319.42,0.00024383,2]
[357464927,1744075854732,-690.67,0.00024383,2]
[357464928,1744075854741,-500.0,0.00024383,2]
[357464929,1744075854751,-886.21,0.00024383,2]
[357464930,1744075854761,-917.76,0.00024383,2]
[357464931,1744075854770,-500.0,0.00024383,2]
[357464932,1744075854779,-500.0,0.00024383,2]
[357464933,1744075854789,-1205.86,0.00024383,2]
[357464934,1744075854799,-650.7,0.00024383,2]
[357464935,1744075854808,-500.0,0.00024383,2]
[357464936,1744075854818,-718.92,0.00024383,2]
[357464937,1744075854827,-906.03,0.00024383,2]
[357464938,1744075854837,-657.7,0.00024383,2]
[357464939,1744075854846,-500.0,0.00024383,2]
[357464940,1744075854855,-1058.79,0.00024383,2]
[357464941,1744075854865,-500.0,0.00024383,2]
[357464942,1744075854875,-1529.51,0.00024383,2]
[357464943,1744075854884,-500.0,0.00024383,2]
[357464944,1744075854894,-575.99238763,0.00024383,2]
[357464945,1744075854903,-923.55,0.00024383,2]
[357464946,1744075854912,-605.62,0.00024383,2]
[357464947,1744075854922,-1846.61,0.00024383,2]
[357464948,1744075854932,-174.956538,0.000245,2]
[357464949,1744075854941,-160.0,0.00024601,2]
[357464950,1744075854951,-12527.9349248,0.00024601,2]
[357464951,1744075854960,-160.0,0.00024601,2]
[357464952,1744075854972,-419.36665037,0.00024601,2]
[357464953,1744075854982,-160.0,0.00024601,2]
[357464954,1744075854992,-500.0,0.00024657,2]
[357464955,1744075855001,-684.93,0.00024657,2]
[357464956,1744075855011,-500.0,0.00024657,2]
[357464957,1744075855020,-500.0,0.00024657,2]
[357464958,1744075855030,-627.85,0.00024657,2]
[357464959,1744075855040,-500.0,0.00024657,2]
[357464960,1744075855050,-536.57,0.00024657,2]
[357464961,1744075855061,-539.51,0.00024657,2]
[357464962,1744075855071,-500.0,0.00024657,2]
[357464963,1744075855081,-500.0,0.00024657,2]
[357464964,1744075855090,-500.0,0.00024657,2]
[357464965,1744075855100,-656.43,0.00024657,2]
[357464966,1744075855111,-562.19,0.00024657,2]
[357464967,1744075855121,-833.59,0.00024657,2]
[357464968,1744075855132,-157.71555921,0.00024657,2]
[357464969,1744075855142,-500.0,0.00024657,2]
[357464970,1744075855152,-500.0,0.00024657,2]
[357464971,1744075855162,-500.0,0.00024657,2]
[357464972,1744075855171,-500.0,0.00024657,2]